[Event "XLIV Barbera del Valles-A 2022"]
[Site "Barbera del Valles"]
[Date "2022.07.07"]
[Round "4.8"]
[White "Alvarez Albiol, Victor"]
[Black "Salinas Tomas, Daniel"]
[Result "1-0"]
[ECO "B31"]
[WhiteElo "2367"]
[BlackElo "2185"]
[Annotator "RC"]
[PlyCount "69"]
[EventDate "2022.07.04"]
[EventType "swiss"]
[EventCountry "ESP"]
[SourceTitle "playchess.com"]
[Source "ChessBase"]
[SourceQuality "1"]
[TimeControl "5400+30"]

1. e4 {[%emt 0:00:03]} c5 {[%emt 0:00:07]} 2. Nf3 {[%emt 0:00:05]} Nc6 {[%emt 0:00:07]} 3. Bb5 {[%emt 0:00:06]} g6 {[%emt 0:00:08]} 4. O-O {[%emt 0:00:08]} Bg7 {[%emt 0:00:10]} 5. Re1 {[%emt 0:00:06]} Nf6 {[%emt 0:02:30]} 6. c3 {[%emt 0:00:48]} O-O {[%emt 0:00:27]} 7. h3 {[%emt 0:00:14]} e5 {[%emt 0:01:20]} 8. d4 {[%emt 0:00:23]} cxd4 {[%emt 0:01:07]} 9. cxd4 {[%emt 0:00:06]} exd4 {[%emt 0:00:45]} 10. e5 {[%emt 0:00:23]} Nd5 {[%emt 0:00:24]} 11. Bg5 {[%emt 0:00:35]} Qb6 {[%emt 0:01:00]} 12. Bc4 {[%emt 0:00:30]} Nde7 {[%emt 0:15:03]} 13. Nbd2 {[%emt 0:03:10]} h6 {[%emt 0:03:24]} 14. Bf4 {[%emt 0:06:38]} g5 {[%emt 0:11:21]} 15. Bh2 {[%emt 0:16:23]} d6 {[%emt 0:01:10]} 16. exd6 {[%emt 0:03:17]} Ng6 {[%emt 0:00:01]} 17. Qc2 {[%emt 0:08:15]} Kh7 {[%emt 0:06:51]} 18. h4 {[%emt 0:02:47]} gxh4 {[%emt 0:13:33]} 19. Nxh4 {[%emt 0:02:17]} Nb4 {[%emt 0:02:19]} 20. Qb1 {[%emt 0:01:43]} d3 {[%emt 0:00:34]} 21. Bxd3 {[%emt 0:01:20]} Nxd3 {[%emt 0:00:53]} 22. Qxd3 {[%emt 0:00:21]} Kg8 {[%emt 0:02:24]} 23. Nc4 {[%emt 0:05:56]} Qc5 {[%emt 0:00:28]} 24. Nxg6 {[%emt 0:13:39]} fxg6 {[%emt 0:00:01]} 25. Ne3 {[%emt 0:00:16]} Bd7 {[%emt 0:01:20]} 26. Rac1 {[%emt 0:02:21]} Qh5 {[%emt 0:00:25]} 27. Nd5 {[%emt 0:11:30]} Rxf2 {[%emt 0:03:37]} 28. Kxf2 {[%emt 0:02:04]} Qxh2 {[%emt 0:00:05]} 29. Ne7+ {[%emt 0:01:16]} Kh7 {[%emt 0:00:11]} 30. Nxg6 {[%emt 0:01:32]} Kg8 {[%emt 0:00:20]} 31. Rc7 {[%emt 0:01:57]} Rf8+ {[%emt 0:01:04]} 32. Nxf8 {[%emt 0:16:21]} Qf4+ {[%emt 0:00:06]} 33. Qf3 {[%emt 0:00:00]} Bd4+ {[%emt 0:00:22]} 34. Kf1 {[%emt 0:00:00]} Bb5+ {[%emt 0:00:40]} 35. Re2 {[%emt 0:00:00]} 1-0

[Event "XLIV Barbera del Valles-A 2022"]
[Site "Barbera del Valles"]
[Date "2022.07.07"]
[Round "4.9"]
[White "Nagare Akhilesh"]
[Black "Bernado Lopez, Roger"]
[Result "1/2-1/2"]
[ECO "D36"]
[WhiteElo "1856"]
[BlackElo "2315"]
[Annotator "RC"]
[PlyCount "97"]
[EventDate "2022.07.04"]
[EventType "swiss"]
[EventCountry "ESP"]
[SourceTitle "playchess.com"]
[Source "ChessBase"]
[SourceQuality "1"]
[TimeControl "5400+30"]

1. c4 {[%emt 1:31:00]} e6 {[%emt 0:00:56]} 2. Nc3 {[%emt 0:00:00]} d5 {[%emt 0:00:08]} 3. d4 {[%emt 0:00:00]} Nf6 {[%emt 0:00:10]} 4. cxd5 {[%emt 0:00:00]} exd5 {[%emt 0:00:33]} 5. Bg5 {[%emt 0:00:00]} c6 {[%emt 0:00:07]} 6. Qc2 {[%emt 0:00:00]} h6 {[%emt 0:00:10]} 7. Bh4 {[%emt 0:00:00]} Be7 {[%emt 0:00:12]} 8. e3 {[%emt 0:00:00]} O-O {[%emt 0:00:19]} 9. Bd3 {[%emt 0:00:00]} Re8 {[%emt 0:00:05]} 10. Nf3 {[%emt 0:00:00]} Ne4 {[%emt 0:00:14]} 11. Bxe7 {[%emt 0:00:00]} Qxe7 {[%emt 0:00:06]} 12. O-O {[%emt 0:00:00]} Nd7 {[%emt 0:01:59]} 13. Rab1 {[%emt 0:00:00]} a5 {[%emt 0:09:54]} 14. a3 {[%emt 0:00:00]} Ndf6 {[%emt 0:01:15]} 15. b4 {[%emt 0:00:00]} axb4 {[%emt 0:00:45]} 16. axb4 {[%emt 0:00:00]} Bf5 {[%emt 0:01:56]} 17. Ne5 {[%emt 0:00:00]} Nxc3 {[%emt 0:08:24]} 18. Qxc3 {[%emt 0:00:00]} Bxd3 {[%emt 0:00:16]} 19. Nxd3 {[%emt 0:00:00]} Ne4 {[%emt 0:00:19]} 20. Qb2 {[%emt 0:00:00]} Nd6 {[%emt 0:00:24]} 21. Ra1 {[%emt 0:00:00]} Qg5 {[%emt 0:15:59]} 22. Qe2 {[%emt 0:00:00]} Nf5 {[%emt 0:06:09]} 23. Qf3 {[%emt 0:00:00]} f6 {[%emt 0:51:40]} 24. b5 {[%emt 0:00:00]} Rxa1 {[%emt 0:00:00]} 25. Rxa1 {[%emt 0:00:00]} Re4 {[%emt 0:00:00]} 26. bxc6 {[%emt 0:00:00]} bxc6 {[%emt 0:00:00]} 27. g3 {[%emt 0:00:00]} h5 {[%emt 0:00:00]} 28. Nf4 {[%emt 0:00:00]} h4 {[%emt 0:00:00]} 29. Qh5 {[%emt 0:00:00]} Qxh5 {[%emt 0:00:00]} 30. Nxh5 {[%emt 0:00:00]} Re7 {[%emt 0:00:00]} 31. Rc1 {[%emt 0:00:00]} hxg3 {[%emt 0:00:00]} 32. hxg3 {[%emt 0:00:00]} Rc7 {[%emt 0:00:00]} 33. Nf4 {[%emt 0:00:00]} Ne7 {[%emt 0:00:00]} 34. g4 {[%emt 0:03:24]} Kf7 {[%emt 0:00:00]} 35. Kg2 {[%emt 0:00:02]} g5 {[%emt 0:00:00]} 36. Nd3 {[%emt 0:01:18]} Rb7 {[%emt 0:00:00]} 37. Rc3 {[%emt 0:03:13]} Rb1 {[%emt 0:00:00]} 38. Nc1 {[%emt 0:03:18]} Ke6 {[%emt 0:00:00]} 39. Ne2 {[%emt 0:01:08]} Rb2 {[%emt 0:00:00]} 40. Ng3 {[%emt 0:00:02]} Kd7 {[%emt 0:02:27]} 41. Kf3 {[%emt 0:01:09]} Rb8 {[%emt 0:01:53]} 42. Ra3 {[%emt 0:01:02]} Nc8 {[%emt 0:00:58]} 43. Nf5 {[%emt 0:00:27]} Nd6 {[%emt 0:01:49]} 44. Nxd6 {[%emt 0:04:06]} Kxd6 {[%emt 0:00:01]} 45. Ra7 {[%emt 0:00:05]} Rb3 {[%emt 0:01:08]} 46. Rf7 {[%emt 0:00:09]} Ke6 {[%emt 0:00:08]} 47. Rc7 {[%emt 0:00:06]} Kd6 {[%emt 0:00:13]} 48. Rf7 {[%emt 0:00:24]} Ke6 {[%emt 0:00:01]} 49. Rc7 {[%emt 0:00:40]} 1/2-1/2

[Event "XLIV Barbera del Valles-A 2022"]
[Site "Barbera del Valles"]
[Date "2022.07.07"]
[Round "4.10"]
[White "Vehi Bach, Victor Manuel"]
[Black "Dahale, Atul"]
[Result "0-1"]
[ECO "B90"]
[WhiteElo "2290"]
[BlackElo "2162"]
[Annotator "RC"]
[PlyCount "100"]
[EventDate "2022.07.04"]
[EventType "swiss"]
[EventCountry "ESP"]
[SourceTitle "playchess.com"]
[Source "ChessBase"]
[SourceQuality "1"]
[TimeControl "5400+30"]

1. e4 {[%emt 0:00:03]} c5 {[%emt 0:00:22]} 2. Nf3 {[%emt 0:00:10]} d6 {[%emt 0:00:18]} 3. d4 {[%emt 0:00:10]} cxd4 {[%emt 0:00:08]} 4. Nxd4 {[%emt 0:00:06]} Nf6 {[%emt 0:00:07]} 5. Nc3 {[%emt 0:00:06]} a6 {[%emt 0:00:28]} 6. h3 {[%emt 0:00:23]} e5 {[%emt 0:04:55]} 7. Nb3 {[%emt 0:00:43]} b5 {[%emt 0:04:27]} 8. a4 {[%emt 0:05:27]} b4 {[%emt 0:02:27]} 9. Nd5 {[%emt 0:00:12]} Nxd5 {[%emt 0:00:18]} 10. Qxd5 {[%emt 0:00:35]} Ra7 {[%emt 0:00:15]} 11. Be3 {[%emt 0:01:22]} Be6 {[%emt 0:01:26]} 12. Qa5 {[%emt 0:07:25]} Qxa5 {[%emt 0:04:57]} 13. Nxa5 {[%emt 0:01:40]} Rc7 {[%emt 0:02:07]} 14. Bd3 {[%emt 0:41:32]} Be7 {[%emt 0:20:01]} 15. O-O-O {[%emt 0:07:35]} O-O {[%emt 0:00:34]} 16. b3 {[%emt 0:13:34]} Nd7 {[%emt 0:01:40]} 17. Bc4 {[%emt 0:01:52]} Nc5 {[%emt 0:00:27]} 18. f3 {[%emt 0:01:45]} Bxc4 {[%emt 0:06:40]} 19. Nxc4 {[%emt 0:00:08]} Nxa4 {[%emt 0:01:28]} 20. Nxd6 {[%emt 0:00:48]} Nc3 {[%emt 0:00:45]} 21. Rd2 {[%emt 0:00:25]} Bxd6 {[%emt 0:02:30]} 22. Rxd6 {[%emt 0:00:10]} Rfc8 {[%emt 0:01:27]} 23. Rd2 {[%emt 0:01:22]} Rc6 {[%emt 0:01:23]} 24. Kb2 {[%emt 0:00:36]} g6 {[%emt 0:01:45]} 25. Bh6 {[%emt 0:06:19]} Nb5 {[%emt 0:05:44]} 26. Rc1 {[%emt 0:01:02]} R6c7 {[%emt 0:11:09]} 27. f4 {[%emt 0:00:53]} exf4 {[%emt 0:16:37]} 28. Bxf4 {[%emt 0:02:19]} Rc6 {[%emt 0:10:05]} 29. Rcd1 {[%emt 0:01:48]} f6 {[%emt 0:00:00]} 30. e5 {[%emt 0:01:31]} g5 {[%emt 0:00:00]} 31. Be3 {[%emt 0:00:55]} fxe5 {[%emt 0:00:00]} 32. Rd8+ {[%emt 0:00:34]} Rxd8 {[%emt 0:00:00]} 33. Rxd8+ {[%emt 0:00:01]} Kf7 {[%emt 0:00:00]} 34. Rd2 {[%emt 0:01:46]} h6 {[%emt 0:00:00]} 35. Rf2+ {[%emt 0:00:20]} Ke6 {[%emt 0:00:06]} 36. h4 {[%emt 0:00:19]} Nc3 {[%emt 0:00:41]} 37. Rf1 {[%emt 0:00:41]} gxh4 {[%emt 0:01:06]} 38. Bxh6 {[%emt 0:00:11]} Kd5 {[%emt 0:00:42]} 39. Bf8 {[%emt 0:00:18]} Rb6 {[%emt 0:00:44]} 40. Be7 {[%emt 0:00:12]} e4 {[%emt 0:00:35]} 41. Bxb4 {[%emt 0:00:56]} Nb5 {[%emt 0:00:53]} 42. Be7 {[%emt 0:00:08]} Nd4 {[%emt 0:01:09]} 43. Bxh4 {[%emt 0:00:18]} e3 {[%emt 0:00:22]} 44. Re1 {[%emt 0:00:29]} Ke4 {[%emt 0:00:27]} 45. Bg5 {[%emt 0:00:32]} e2 {[%emt 0:00:46]} 46. Bd2 {[%emt 0:00:37]} Rg6 {[%emt 0:00:16]} 47. c3 {[%emt 0:00:09]} Kd3 {[%emt 0:00:09]} 48. Bc1 {[%emt 0:00:40]} Nb5 {[%emt 0:01:17]} 49. c4 {[%emt 0:00:28]} Nd4 {[%emt 0:00:32]} 50. Bf4 {[%emt 0:00:11]} Rxg2 {[%emt 0:00:15]} 0-1

[Event "XLIV Barbera del Valles-A 2022"]
[Site "Barbera del Valles"]
[Date "2022.07.08"]
[Round "5.1"]
[White "Alsina Leal, Daniel"]
[Black "Asis Gargatagli, Hipolito"]
[Result "1-0"]
[ECO "C58"]
[WhiteElo "2525"]
[BlackElo "2514"]
[Annotator "TA"]
[PlyCount "87"]
[EventDate "2022.07.04"]
[EventType "swiss"]
[EventCountry "ESP"]
[SourceTitle "playchess.com"]
[Source "ChessBase"]
[SourceQuality "1"]
[TimeControl "5400+30"]

{[%evp 14,87,24,21,33,33,25,22,26,18,19,21,35,20,23,0,0,0,0,0,0,0,0,0,36,82,71,0,0,-23,85,-21,-22,-8,0,-57,-55,-46,-44,-72,0,0,43,40,33,39,33,58,53,28,20,16,27,8,91,87,116,79,136,137,136,97,134,127,110,96,220,221,173,194,191,182,304,258,447,409]} 1. e4 {[%emt 0:00:18]} e5 {[%emt 0:00:07]} 2. Nf3 {[%emt 0:00:16]} Nc6 {[%emt 0:00:05]} 3. Bc4 {[%emt 0:00:12]} Nf6 {[%emt 0:00:07]} 4. Ng5 {[%emt 0:00:10]} d5 {[%emt 0:00:06]} 5. exd5 {[%emt 0:00:05]} Na5 {[%emt 0:00:03]} 6. Bb5+ {[%emt 0:00:09]} c6 {[%emt 0:00:05]} 7. dxc6 {[%emt 0:00:08]} bxc6 {[%emt 0:00:05]} 8. Bd3 {[%emt 0:00:11]} Nd5 {[%emt 0:00:29] C58: Two Knights: 4 Ng5 d5 5 exd5 Na5 sidelines.} 9. Nf3 {[%emt 0:00:15]} (9. Qh5 g6 10. Nxf7 gxh5 $17) 9... Bd6 {[%emt 0:00:04]} 10. O-O {[%emt 0:00:21]} O-O {[%emt 0:00:04] The position is equal.} 11. Re1 {[%emt 0:00:16]} f5 {[%emt 0:00:12]} 12. Nxe5 {[%emt 0:00:20] Threatens to win with Bf1.} Qf6 $1 {[%emt 0:00:05]} (12... Qh4 13. Bf1 $18) 13. Nf3 {[%emt 0:00:10]} g5 $1 {[%emt 0:00:04]} 14. c4 $1 {[%emt 0:00:25] 14.c4 scores better than 14.g3.} (14. g3 $5 {[%cal Rb1c3]}) 14... Nf4 {[%emt 0:00:16]} 15. Bf1 {[%emt 0:00:07] Hoping for d4.} g4 {[%emt 0:00:04]} 16. d4 {[%emt 0:00:23]} gxf3 {[%emt 0:00:07]} 17. Qxf3 {[%emt 0:00:07]} Ne6 {[%emt 0:00:04]} (17... Qxd4 18. Rd1 Nh3+ 19. gxh3 $16) 18. Qc3 {[%emt 0:00:19]} Qh4 {[%emt 0:00:05][%csl Gd6][%cal Rh4h2]} 19. h3 {[%emt 0:00:38][%mdl 1024] White has compensation.} c5 {[%emt 0:00:23][%cal Of5f4] [#]} 20. Na3 $5 $146 {[%emt 0:00:58][%mdl 8] An interesting novelty.} ({White should try} 20. Qxa5 $16 {aiming for dxc5.} Bc7 21. Qa3) ({Predecessor:} 20. Nd2 Nxd4 21. Nf3 Nxf3+ 22. Qxf3 Bb7 23. Qc3 Nc6 24. Re6 Rad8 25. Bh6 Nd4 26. Bxf8 Bxf8 {0-1 (32) Deac,B (2679)-Demchenko,A (2654) Chess.com INT 2022}) 20... Nb7 $36 {[%emt 0:01:49][%mdl 2048] Black has the initiative.} 21. Qf3 {[%emt 0:04:33] Nb5 is the strong threat.} Rb8 {[%emt 0:36:47] [#]} (21... Qxd4 $2 22. Nb5 Qg7 23. Nxd6 Nxd6 24. Qxa8 $18) (21... Nxd4 $11 22. Qd5+ Kg7) 22. Qd5 {[%emt 0:13:12]} (22. Nb5 $1 $16) 22... Rd8 {[%emt 0:06:21][%cal Od6h2]} 23. Qxf5 {[%emt 1:18:27] Dancing on a razor blade.} Rf8 {[%emt 0:19:40]} 24. Qg4+ {[%emt 0:00:00]} ({Better is} 24. Re4 $11 Qe7 25. Qg4+ Kh8 26. Nb5 (26. Bh6 Rg8 $11)) 24... Qxg4 $15 {[%emt 0:00:05]} 25. hxg4 {[%emt 0:00:00]} Nxd4 {[%emt 0:05:27]} 26. Bh6 {[%emt 0:00:00] [#]} Bxg4 {[%emt 0:10:54]} 27. Bxf8 $11 {[%emt 0:00:00]} Rxf8 {[%emt 0:00:41]} 28. Bd3 {[%emt 0:00:00]} a6 {[%emt 0:20:11] Prevents Nb5.} 29. Nc2 {[%emt 0:00:00]} Nxc2 {[%emt 0:00:00]} 30. Bxc2 {[%emt 0:00:00]} Nd8 {[%emt 0:01:00]} 31. Be4 {[%emt 0:00:00] Inhibits Nc6.} (31. Re4 $5 {[%cal Re4g4]} Bf5 32. Re2 $14) 31... Kg7 {[%emt 0:00:00]} 32. Bd5 {[%emt 0:00:00]} Kf6 {[%emt 0:00:00]} 33. Re3 {[%emt 0:00:00]} Nf7 {[%emt 0:00:00]} (33... Be5 $11 {remains equal.}) 34. Rae1 {[%emt 0:05:30]} Ne5 {[%emt 0:00:00]} 35. Rb3 {[%emt 0:00:00]} Bc8 {[%emt 0:00:00]} (35... a5 $142) 36. Rb6 $16 {[%emt 0:00:00]} Rd8 {[%emt 0:00:00]} 37. Re3 {[%emt 0:00:00]} Kf5 {[%emt 0:00:00]} 38. Rh3 {[%emt 0:00:00] Strongly threatening Rh6. White is more active.} Kg6 {[%emt 0:00:00] Prevents Rh6+.} 39. Rg3+ {[%emt 0:00:00]} Kf5 {[%emt 0:00:16] A mistake that costs the game.} (39... Ng4 $16 {is a better defense.}) 40. Rg8 $18 {[%emt 0:00:00]} (40. Rg7 Ng4 $16) 40... Rxg8 {[%emt 0:00:07]} 41. Bxg8 {[%emt 0:00:00]} Bc7 {[%emt 0:00:07]} 42. Rh6 {[%emt 0:00:00]} ({Don't do} 42. Bxh7+ $6 Kg5 43. Rb3 Kf6 $16) 42... Ke4 {[%emt 0:01:47]} (42... Bd8 $142 43. Bd5 (43. Bxh7+ Kg5 $16) (43. Rxh7 Kg6 $16) 43... Bf6 44. Rxh7 Nd7) 43. Bxh7+ {[%emt 0:00:00]} Kf4 $2 {[%emt 0:00:03]} (43... Kd4 44. f4 Nxc4) 44. Rf6+ {[%emt 0:00:00] Weighted Error Value: White=0.15 (very precise) /Black=0.24 (precise)} 1-0

[Event "XLIV Barbera del Valles-A 2022"]
[Site "Barbera del Valles"]
[Date "2022.07.08"]
[Round "5.2"]
[White "Rios, Cristhian Camilo"]
[Black "Moskalenko, Viktor"]
[Result "1/2-1/2"]
[ECO "A90"]
[WhiteElo "2399"]
[BlackElo "2457"]
[Annotator "RC"]
[PlyCount "34"]
[EventDate "2022.07.04"]
[EventType "swiss"]
[EventCountry "ESP"]
[SourceTitle "playchess.com"]
[Source "ChessBase"]
[SourceQuality "1"]
[TimeControl "5400+30"]

1. d4 {[%emt 0:00:07]} d5 {[%emt 0:00:15]} 2. c4 {[%emt 0:00:38]} e6 {[%emt 0:00:11]} 3. g3 {[%emt 0:00:31]} c6 {[%emt 0:05:49]} 4. Bg2 {[%emt 0:01:29]} Bd6 {[%emt 0:03:02]} 5. Nd2 {[%emt 0:05:06]} f5 {[%emt 0:00:47]} 6. Nh3 {[%emt 0:00:34]} Nf6 {[%emt 0:00:07]} 7. O-O {[%emt 0:01:07]} O-O {[%emt 0:00:19]} 8. Qc2 {[%emt 0:04:03]} Qe7 {[%emt 0:01:01]} 9. Nf3 {[%emt 0:00:46]} Nbd7 {[%emt 0:05:37]} 10. Bf4 {[%emt 0:06:58]} Ne4 {[%emt 0:03:01]} 11. Bxd6 {[%emt 0:01:00]} Nxd6 {[%emt 0:00:59]} 12. b3 {[%emt 0:02:08]} b6 {[%emt 0:02:38]} 13. Nf4 {[%emt 0:05:17]} Bb7 {[%emt 0:03:09]} 14. Nd3 {[%emt 0:00:50]} Rac8 {[%emt 0:01:55]} 15. Rac1 {[%emt 0:03:57]} dxc4 {[%emt 0:06:36]} 16. bxc4 {[%emt 0:01:53]} c5 {[%emt 0:01:19]} 17. Qa4 {[%emt 1:02:36]} cxd4 {[%emt 0:18:46]} 1/2-1/2

[Event "XLIV Barbera del Valles-A 2022"]
[Site "Barbera del Valles"]
[Date "2022.07.08"]
[Round "5.3"]
[White "Cuartas, Jaime Alexander"]
[Black "Gkoumas, Georgios"]
[Result "0-1"]
[ECO "D02"]
[WhiteElo "2513"]
[BlackElo "2427"]
[Annotator "TA"]
[PlyCount "100"]
[EventDate "2022.07.04"]
[EventType "swiss"]
[EventCountry "ESP"]
[SourceTitle "playchess.com"]
[Source "ChessBase"]
[SourceQuality "1"]
[TimeControl "5400+30"]

{[%evp 14,100,-17,-26,-18,-41,-47,-47,-47,-40,-31,-38,-43,-54,-45,-55,-61,-81,-73,-82,-68,-87,69,-104,-97,-97,-91,-131,-108,-118,-105,-116,-107,-162,-154,-195,-191,-208,-185,-208,-198,-332,-318,-436,-426,-490,-469,-475,-475,-456,-393,-395,-416,-405,-410,-465,-439,-510,-496,-484,-425,-508,-420,-422,-420,-475,-489,-498,-445,-542,-502,-29984,-29985,-29985,-29986,-29986,-29987,-29987,-29988,-29993,-29994,-29994,-29995,-29995,-29996,-29996,-29997,-29997,-29998]} 1. d4 {[%emt 0:00:17]} Nf6 {[%emt 0:00:15]} 2. Bf4 {[%emt 0:00:08]} d5 {[%emt 0:00:33]} 3. e3 {[%emt 0:00:22]} c5 {[%emt 0:00:42]} 4. c3 {[%emt 0:00:10]} Nc6 {[%emt 0:00:14]} 5. Nf3 {[%emt 0:00:12]} Qb6 {[%emt 0:02:07]} 6. Qb3 {[%emt 0:00:13]} c4 {[%emt 0:00:06]} 7. Qc2 {[%emt 0:00:03] 7.Qc2 is better than 7.Qxb6.} Bf5 {[%emt 0:05:01]} 8. Qc1 {[%emt 0:00:05]} ({Not} 8. Qxf5 $2 Qxb2 9. Nbd2 Qxa1+ $19) 8... Nh5 {[%emt 0:00:23] D02: 1 d4 d5 2 Nf3 sidelines, including 2...Nf6 3 g3 and 2...Nf6 3 Bf4.} 9. Be2 {[%emt 0:00:13]} Nxf4 {[%emt 0:00:34]} 10. exf4 {[%emt 0:00:07]} e6 {[%emt 0:06:58] Black is slightly better.} 11. O-O {[%emt 0:00:35]} Be7 {[%emt 0:00:58] Inhibits Nh4.} 12. Re1 {[%emt 0:15:07]} O-O {[%emt 0:11:51]} 13. Nbd2 {[%emt 0:02:23]} Qc7 {[%emt 0:01:09] [#]} 14. Nf1 $146 {[%emt 0:01:00]} ({Predecessor:} 14. g3 b5 15. Nf1 h6 16. Ne3 Be4 17. Nd2 Bg6 18. Bd1 Bd6 19. Bc2 Bxc2 20. Qxc2 {1-0 (56) Lazic,L (2155)-Poleksic,M (2113) Belgrade 2018}) 14... b5 {[%emt 0:00:49]} 15. Ng3 {[%emt 0:02:36]} Bg6 {[%emt 0:02:42]} 16. Bd1 {[%emt 0:12:46]} b4 {[%emt 0:02:49]} 17. Ba4 {[%emt 0:00:46][%cal Of4f5] Threatens to win with f5!} bxc3 $2 {[%emt 0:02:25]} (17... Bd6 $17 {Hoping for ...bxc3.} 18. Ne5 Ne7) 18. bxc3 $2 {[%emt 0:01:28] [#]} (18. f5 $1 $14 {stays ahead.}) 18... Bd6 $1 $17 {[%emt 0:02:27] Black converts the advantage convincingly.} 19. Ne2 {[%emt 0:06:00]} Rab8 {[%emt 0:04:26]} 20. g3 {[%emt 0:02:39]} Rb7 {[%emt 0:08:42] 0x0.0022fcd00b13dp-1022s more active pieces. The white rooks are badly placed.} 21. Bc2 {[%emt 0:05:17] [#]} Ba3 $1 {[%emt 0:03:46][%mdl 512]} 22. Qxa3 {[%emt 0:01:41][%cal Of4f5] aiming for f5!} Bxc2 {[%emt 0:00:06]} 23. Ne5 {[%emt 0:00:03]} (23. Qc1 $17 Be4 24. Qe3) 23... Rfb8 $19 {[%emt 0:04:24]} 24. Qc5 {[%emt 0:01:50]} Nxe5 {[%emt 0:03:45]} 25. fxe5 {[%emt 0:00:06]} Be4 {[%emt 0:01:12]} 26. Qa3 {[%emt 0:07:37]} Qe7 {[%emt 0:03:46]} 27. Qc1 {[%emt 0:07:39]} (27. Qxe7 {is a better defense.} Rxe7 28. Nf4) 27... Rb2 {[%emt 0:00:06]} 28. h4 {[%emt 0:00:49]} h6 {[%emt 0:01:01]} 29. a4 {[%emt 0:05:43]} a5 {[%emt 0:00:16]} 30. Qe3 {[%emt 0:00:23]} Rc2 {[%emt 0:01:09]} 31. Rec1 {[%emt 0:02:03]} Rxc1+ {[%emt 0:04:24]} 32. Qxc1 {[%emt 0:05:11]} Rb3 {[%emt 0:01:51]} 33. Nf4 {[%emt 0:00:39][%cal Be2f4,Bf4g2,Bg2e3][%mdl 32]} Qb7 {[%emt 0:00:45]} 34. Ng2 {[%emt 0:00:15]} Rb2 {[%emt 0:00:41]} 35. Ne3 {[%emt 0:00:36]} Qb3 {[%emt 0:02:34]} 36. g4 {[%emt 0:07:52]} Re2 {[%emt 0:06:44]} 37. h5 {[%emt 0:00:24]} Rb2 {[%emt 0:02:56]} 38. Kf1 {[%emt 0:01:53]} Qb8 {[%emt 0:02:23]} 39. Kg1 {[%emt 0:00:57]} Re2 {[%emt 0:04:16] Strongly threatening ...Qd8.} 40. Kf1 {[%emt 0:01:36]} Bf3 {[%emt 0:01:51]} 41. Rb1 {[%emt 0:01:41]} Qd8 {[%emt 0:00:01] ( -> ...Qh4)} 42. Rb5 {[%emt 0:00:13]} (42. Ng2 $19 Bxg4 43. Qf4 Bxh5 44. Qg3) 42... Qh4 {[%emt 0:01:47][%csl Ge2,LRf2,LRg4][%cal Rh4f2] Black mates.} 43. Rb8+ {[%emt 0:00:05]} Kh7 {[%emt 0:00:05][%csl Ge2][%cal Rh4f2]} 44. Qb1+ {[%emt 0:00:05] [#]} g6 $1 {[%emt 0:00:36]} 45. hxg6+ {[%emt 0:00:12]} Kg7 {[%emt 0:00:10][%csl Ge2][%cal Rh4f2,Bh7g7,Bg7g8,Bg8f8,Bf8f7,Bf7g6,Bg6g5][%mdl 32]} 46. Rg8+ {[%emt 0:00:05]} Kxg8 {[%emt 0:00:05][%csl Ge2][%cal Rh4f2]} 47. gxf7+ {[%emt 0:00:03]} Kf8 {[%emt 0:01:10][%csl Ge2][%cal Rh4f2]} ({Worse is} 47... Kxf7 48. Qh7+ Ke8 49. Qg8+ Kd7 50. Qf7+ Qe7 51. Qxf3 $17) 48. Qb8+ {[%emt 0:00:42]} Kxf7 {[%emt 0:00:07][%csl Ge2][%cal Rh4f2]} 49. Qb7+ {[%emt 0:00:23]} Kg6 {[%emt 0:00:38][%csl Ge2][%cal Rh4f2]} 50. Qb1+ {[%emt 0:00:03]} Kg5 {[%emt 0:00:31] Weighted Error Value: White=0.49/Black=0.13 (very precise)} 0-1

[Event "XLIV Barbera del Valles-A 2022"]
[Site "Barbera del Valles"]
[Date "2022.07.08"]
[Round "5.4"]
[White "Narciso Dublan, Marc"]
[Black "Valenzuela Gomez, Fernando"]
[Result "1/2-1/2"]
[ECO "C22"]
[WhiteElo "2461"]
[BlackElo "2373"]
[Annotator "RC"]
[PlyCount "78"]
[EventDate "2022.07.04"]
[EventType "swiss"]
[EventCountry "ESP"]
[SourceTitle "playchess.com"]
[Source "ChessBase"]
[SourceQuality "1"]
[TimeControl "5400+30"]

1. e4 {[%emt 0:00:05]} e5 {[%emt 0:00:31]} 2. d4 {[%emt 0:01:57]} exd4 {[%emt 0:00:07]} 3. Qxd4 {[%emt 0:00:07]} Nc6 {[%emt 0:00:04]} 4. Qc4 {[%emt 0:00:07]} Nf6 {[%emt 0:00:03]} 5. Nc3 {[%emt 0:00:09]} Bb4 {[%emt 0:00:08]} 6. Bd2 {[%emt 0:00:08]} O-O {[%emt 0:00:21]} 7. O-O-O {[%emt 0:00:07]} Re8 {[%emt 0:00:33]} 8. f3 {[%emt 0:00:12]} a5 {[%emt 0:00:08]} 9. a3 {[%emt 0:20:31]} d6 {[%emt 0:02:40]} 10. Nh3 {[%emt 0:14:02]} Ne5 {[%emt 0:16:47]} 11. Qe2 {[%emt 0:00:29]} Be6 {[%emt 0:00:33]} 12. Nf4 {[%emt 0:01:55]} Bc4 {[%emt 0:00:56]} 13. Qf2 {[%emt 0:01:47]} Bc5 {[%emt 0:20:56]} 14. Be3 {[%emt 0:01:02]} Nxe4 15. fxe4 Ng4 {[%emt 0:16:33]} 16. Bxc5 {[%emt 0:00:21]} Nxf2 {[%emt 0:00:11]} 17. Bxf2 {[%emt 0:00:06]} Bxf1 {[%emt 0:00:05]} 18. Rhxf1 {[%emt 0:00:23]} b5 {[%emt 0:00:02]} 19. b4 {[%emt 0:09:33]} axb4 {[%emt 0:02:31]} 20. axb4 {[%emt 0:00:04]} Ra1+ {[%emt 0:04:58]} 21. Kd2 {[%emt 0:20:22]} Rxd1+ {[%emt 0:00:53]} 22. Rxd1 {[%emt 0:02:41]} f5 {[%emt 0:07:07]} 23. exf5 {[%emt 0:05:51]} Qg5 {[%emt 0:00:26]} 24. g3 {[%emt 0:00:38]} Qxf5 {[%emt 0:00:18]} 25. h4 {[%emt 0:01:15]} Qf7 {[%emt 0:05:28]} 26. Nxb5 {[%emt 0:05:33]} Qc4 {[%emt 0:00:59]} 27. Nc3 {[%emt 0:00:14]} Qxb4 {[%emt 0:01:02]} 28. Re1 {[%emt 0:00:33]} Rxe1 {[%emt 0:01:18]} 29. Bxe1 {[%emt 0:00:06]} c6 {[%emt 0:00:52]} 30. Nd3 {[%emt 0:04:01]} Qc4 {[%emt 0:00:07]} 31. Bf2 {[%emt 0:00:41]} h6 {[%emt 0:01:09]} 32. Be3 {[%emt 0:03:32]} Qe6 {[%emt 0:01:23]} 33. Ne2 {[%emt 0:01:06]} c5 {[%emt 0:02:16]} 34. Nc3 {[%emt 0:02:53]} Qh3 {[%emt 0:01:30]} 35. Bf4 {[%emt 0:01:49]} Qg2+ {[%emt 0:00:07]} 36. Ne2 {[%emt 0:00:20]} c4 {[%emt 0:01:20]} 37. Nb4 {[%emt 0:00:38]} d5 {[%emt 0:02:27]} 38. c3 {[%emt 0:00:18]} Qe4 {[%emt 0:00:50]} 39. Nc6 {[%emt 0:00:25]} Kh7 {[%emt 0:02:53]} 1/2-1/2